{"text_format":"2","workbook":"xlsx","n_sheets":1,"sheets":["Munka1"],"not_rendered":{"charts":0,"images":0,"macros":0,"external_links":0,"defined_names":0,"comments":0,"pivot_tables":0},"unopened":[],"bounds":{"document_bytes":16777216,"sheet_cells":100000,"run_cost":"one","rows_first":2000,"rows_last":500,"rows_between":2000,"halvings":0,"cell_chars":16384,"cell_head_chars":4096},"cells_cut":0,"cells_raw":0,"read":"whole","date_system":"1900"}

{"sheet":"Munka1","index":0,"n_rows":33,"n_cols":7,"rows_kept":33,"cut":false,"hidden":false,"merged":[[30,5,30,6],[31,5,31,6],[32,5,32,6],[6,3,6,4],[0,1,0,4],[1,1,1,4],[2,1,2,4],[3,1,3,4],[5,3,5,4],[7,3,7,4],[8,3,8,4],[14,1,14,4]]}
[null,"SZEGEDI TUDOMÁNYEGYETEM"]
[]
[]
[]
[null,null,null,"Kelt:"]
[null,"Szegedi Tudományegyetem                ",null,"Készítette: Cégnév"]
[null,"Műszaki Igazgatóság                    ",null,"Székhely"]
[null,"Műszaki Üzemeltetési Részleg         ",null,"Kapcsolattartó"]
[null,"6725 Szeged, Tisza Lajos krt. 107.     ",null,"Elérhetőség"]
[null,"                                       "]
[null,"                                       "]
[null,"A munka leírása:                       "]
[null,"SZTE JATIK épületében lévő 15 db fan-coil berendezés cseréje."]
[]
[null,"Költségvetés főösszesítő"]
[]
[]
[null,"Berendezés megnevezése","mennyiség db","anyag egységár","munkadíj egységár","anyagdíj összesen","munkadíj  összesen"]
[null,"Meglévő fan-coil berendezések szakszerű elbontása",15,0,0,{"$f":"D19*C19","v":0},{"$f":"E19*C19","v":0}]
[null,"GALLETTI Aquaria AQ10Q0BB 4 csöves  Hűtőteljesítmény 2350 (KW), 7/12 ℃,  Fűtőteljesítmény (KW) 3550, mérete 600*600, GALETTI Acqvaria kazettás fan-coil (3 fordulatú ventilátorral)",11,0,0,{"$f":"D20*C20","v":0},{"$f":"E20*C20","v":0}]
[null,"GALLETTI Aquaria AQ20Q0BB 4 csöves  Hűtőteljesítmény 3380 (KW), 7/12 ℃,  Fűtőteljesítmény (KW) 4220, mérete 600*600, GALETTI Acqvaria kazettás fan-coil (3 fordulatú ventilátorral)",2,0,0,{"$f":"D21*C21","v":0},{"$f":"E21*C21","v":0}]
[null,"GALLETTI Aquaria AQ10Q0B0 2 csöves  Hűtőteljesítmény 2530 (KW), 7/12 ℃,  Fűtőteljesítmény (KW) 3550, mérete 600*600, GALETTI Acqvaria kazettás fan-coil (3 fordulatú ventilátorral)",2,0,0,{"$f":"D22*C22","v":0},{"$f":"E22*C22","v":0}]
[null,"Szerelési anyagok (fittingek, bekötő csövek) szerelési anyagköltség,szabályzó- elzáró szelepek, beüzemelés","1 klts",0,0,{"$f":"D23","v":0},0]
[null," Építőmesteri munkák, szükség esetén álmennyezeti lapok bontása, helyreállítása, egyéb munkálatok","1 klts",0,0,0,0]
[null," Elektromos csatlakozások kiépítése, szerelési anyagköltség és munkadíj","1 klts",0,0,{"$f":"D25","v":0},{"$f":"E25","v":0}]
[null,"Munkaterület bevédése, munkálatok utáni finomtakarítás","1 klts",0,0,{"$f":"D26","v":0},{"$f":"E26","v":0}]
[null,"Beszabályozás, beüzemelés","1 klts",0,0,0,0]
[null,"AQYVK3V  3-járatú szelep",15,0,0,{"$f":"D28*C28","v":0},{"$f":"E28*C28","v":0}]
[{"$nulls":4},"Anyagdíj összesen:",{"$f":"SUM(F19:F28)","v":0}]
[{"$nulls":4},"Munkadíj összesen:",null,{"$f":"SUM(G19:G28)","v":0}]
[{"$nulls":4},"Mindösszesen nettó:",{"$f":"F29+G30","v":0}]
[{"$nulls":4},"ÁFA:",{"$f":"F31*0.27","v":0}]
[{"$nulls":4},"Mindösszesen bruttó:",{"$f":"F31*1.27","v":0}]